bitfinex-derivatives/quotes_SOLF0:USTF0_20250928
["timestamp","ask_amount","ask_price","bid_price","bid_amount"]
[1759043023413,4.4557,201.89,201.84,8.12]
[1759043023614,8.02,201.9,201.84,8.12]
[1759043024716,12.476,201.88,201.84,8.12]
[1759043024917,12.476,201.88,201.83,2.69840513]
[1759043024918,2.69840513,201.86,201.77,8.12]
[1759043025119,8.02,201.85,201.77,8.12]
[1759043027711,72.01970513,201.86,201.77,8.12]
[1759043027712,4.4575,201.81,201.77,8.12]
[1759043027912,8.02,201.8,201.77,8.12]
[1759043028218,4.4575,201.81,201.77,8.12]
[1759043028423,8.02,201.8,201.77,8.12]
[1759043028922,4.4575,201.81,201.77,8.12]
[1759043029513,12.4778,201.8,201.74,8.12]
[1759043031227,8.02,201.79,201.71,8.12]
[1759043032221,8.02,201.76,201.71,8.12]
[1759043032426,8.02,201.76,201.7,8.12]
[1759043037326,4.4587,201.75,201.69,85.6]
[1759043037535,7.93,201.74,201.69,85.6]
[1759043037728,7.93,201.74,201.67,12.1205]
[1759043038126,7.93,201.74,201.65,2.69840513]
[1759043038327,7.93,201.85,201.71,2.69840513]
[1759043038631,7.93,201.85,201.72,7.66]
[1759043038632,7.93,201.83,201.72,7.66]
[1759043039626,7.93,201.8,201.73,4.4589]
[1759043039829,7.93,201.8,201.74,7.66]
[1759043040935,7.93,201.8,201.67,7.66]
[1759043041135,2.69840513,201.81,201.67,10.35840513]
[1759043041336,7.93,201.8,201.68,7.66]
[1759043041536,7.93,201.78,201.68,7.66]
[1759043043732,12.3882,201.78,201.7,7.66]
[1759043044133,7.93,201.76,201.7,7.66]
[1759043044332,7.93,201.77,201.67,12.1204]
[1759043044535,7.93,201.77,201.67,7.66]
[1759043044931,7.93,201.73,201.67,7.66]
[1759043046532,2.69840513,201.75,201.64,360.52]
[1759043046533,7.93,201.7,201.64,7.66]
[1759043047628,12.3899,201.7,201.64,7.66]
[1759043049037,7.93,201.73,201.65,7.66]
[1759043050639,7.93,201.73,201.66,4.4607]
[1759043051444,7.93,201.73,201.65,7.66]
[1759043051838,7.93,201.73,201.62,7.76]
[1759043053139,7.5,201.68,201.62,7.76]
[1759043054544,11.9604,201.68,201.62,7.76]
[1759043056856,4.4598,201.7,201.63,7.76]
[1759043057351,7.5,201.67,201.63,7.76]
[1759043057649,7.5,201.67,201.61,7.76]
[1759043060855,7.5,201.67,201.61,12.2217]
[1759043068149,11.9606,201.67,201.61,7.76]
[1759043069357,7.87,201.68,201.58,7.45]
[1759043069554,7.87,201.65,201.58,7.45]
[1759043070660,12.331,201.65,201.58,7.45]
[1759043072457,1.73080296,201.64,201.55,4.463]
[1759043072660,7.87,201.63,201.56,7.45]
[1759043073165,4.4618,201.62,201.56,7.45]
[1759043075172,69.3823,201.68,201.56,7.45]
[1759043075173,7.87,201.71,201.61,7.45]
[1759043075460,7.87,201.71,201.63,7.45]
[1759043075661,4.4601,201.69,201.63,7.45]
[1759043078962,12.3301,201.69,201.63,7.45]
[1759043083568,7.87,201.69,201.63,4.4612]
[1759043083872,7.87,201.69,201.64,7.45]
[1759043084271,14.06070296,201.7,201.64,7.45]
[1759043085972,7.87,201.68,201.64,7.45]
[1759043086370,7.87,201.68,201.62,7.45]
[1759043087870,7.87,201.68,201.62,4.4614]
[1759043088060,7.87,201.68,201.63,7.45]
[1759043088468,7.87,201.68,201.62,4.4614]
[1759043088673,7.87,201.68,201.63,7.45]
[1759043088874,7.87,201.68,201.62,4.4614]
[1759043089173,12.3302,201.69,201.63,7.45]
[1759043092871,12.3302,201.69,201.63,11.9112]
[1759043093074,7.87,201.69,201.64,7.45]
[1759043093274,7.87,201.69,201.64,7.98]
[1759043093472,7.68,201.71,201.64,7.98]
[1759043093672,4.4599,201.7,201.64,12.441]
[1759043095470,4.4599,201.7,201.64,4.461]
[1759043095675,7.68,201.69,201.65,7.98]
[1759043096575,4.4599,201.7,201.65,7.98]
[1759043096779,7.68,201.69,201.65,7.98]
[1759043097178,4.4599,201.7,201.65,7.98]
[1759043097379,7.68,201.69,201.65,7.98]
[1759043097778,4.4599,201.7,201.65,7.98]
[1759043098474,7.68,201.69,201.65,7.98]
[1759043098781,4.4599,201.7,201.65,7.98]
[1759043098980,4.4599,201.7,201.64,4.461]
[1759043099181,12.1399,201.7,201.64,12.441]
[1759043100282,12.1399,201.7,201.64,7.98]
[1759043100483,9.41080296,201.7,201.64,7.98]
[1759043100682,9.41080296,201.7,201.62,5.53967341]
[1759043100978,6.19160296,201.66,201.61,7.98]
[1759043101179,7.68,201.65,201.58,5.53967341]
[1759043101379,7.68,201.65,201.58,13.51967341]
[1759043101582,12.1411,201.65,201.58,17.98207341]
[1759043102085,12.1411,201.65,201.58,12.4424]
[1759043102284,13.87190296,201.65,201.58,12.4424]
[1759043102784,7.68,201.62,201.55,7.98]
[1759043104488,7.68,201.62,201.55,12.443]
[1759043104680,1.73080296,201.65,201.58,7.98]
[1759043104873,12.1407,201.66,201.58,7.98]
[1759043105081,12.1407,201.66,201.58,9.71080296]
[1759043105685,7.68,201.64,201.58,7.98]
[1759043105990,7.68,201.62,201.55,13.51967341]
[1759043106182,12.1417,201.62,201.55,12.443]
[1759043106680,12.1417,201.62,201.55,7.98]
[1759043108284,6.19190296,201.65,201.56,1.73080296]
[1759043108583,1.73080296,201.65,201.57,7.98]
[1759043109186,7.68,201.64,201.57,7.98]
[1759043109681,12.1413,201.64,201.57,7.98]
[1759043110779,6.19230296,201.63,201.57,7.98]
[1759043110981,6.19230296,201.63,201.54,1.73080296]
[1759043110982,8.1,201.62,201.54,1.73080296]
[1759043111174,8.1,201.62,201.54,8.02]
[1759043111487,1.73080296,201.61,201.54,8.02]
[1759043111682,8.1,201.6,201.54,8.02]
[1759043112688,12.5622,201.6,201.54,8.02]
[1759043113590,69.393,201.65,201.54,8.02]
[1759043113591,1.73080296,201.59,201.54,8.02]
[1759043114189,8.1,201.58,201.54,8.02]
[1759043114389,1.73080296,201.59,201.54,8.02]
[1759043114590,12.5626,201.58,201.54,8.02]
[1759043115095,8.1,201.57,201.54,8.02]
[1759043115295,8.1,201.57,201.53,119.88]
[1759043115487,8.1,201.55,201.53,119.88]
[1759043115891,8.1,201.55,201.5,8.62700709]
[1759043116189,8.1,201.55,201.51,8.02]
[1759043116695,8.1,201.55,201.5,0.60700709]
[1759043116886,8.1,201.55,201.51,8.02]
[1759043117087,8.1,201.55,201.5,0.60700709]
[1759043117283,1.73080296,201.57,201.51,8.02]
[1759043118294,6.19360296,201.57,201.51,8.02]
[1759043119902,1.73080296,201.57,201.51,8.02]
[1759043120098,8.1,201.58,201.51,8.02]
[1759043121702,12.5626,201.58,201.51,8.02]
[1759043123898,12.5626,201.58,201.52,7.55]
[1759043133311,8.05,201.56,201.5,8.15700709]
[1759043135201,8.05,201.56,201.5,12.62110709]
[1759043135406,8.05,201.56,201.51,7.55]
[1759043135609,8.05,201.56,201.5,5.07110709]
[1759043135610,8.05,201.57,201.46,7.55]
[1759043135905,8.05,201.55,201.46,7.55]
[1759043137712,8.05,201.52,201.46,7.55]
[1759043139218,12.514,201.52,201.46,7.55]
[1759043141719,2.70680513,201.6,201.45,72.16640513]
[1759043141916,8.05,201.59,201.47,7.55]
[1759043142718,12.513,201.56,201.5,7.55]
[1759043153428,7.76,201.58,201.49,13.44967341]
[1759043153629,7.76,201.58,201.5,7.91]
[1759043154029,7.76,201.58,201.5,13.44967341]
[1759043154628,12.2226,201.58,201.52,4.4636]
[1759043156226,12.2226,201.58,201.5,17.91377341]
[1759043156528,12.2226,201.58,201.5,10.00377341]
[1759043156824,12.2226,201.58,201.51,17.91347341]
[1759043162435,2.70680513,201.59,201.51,7.91]
[1759043162732,1.23985999,201.58,201.49,17.91407341]
[1759043163033,2.70680513,201.59,201.49,17.91407341]
[1759043163227,7.76,201.57,201.49,17.91407341]
[1759043163433,2.70680513,201.59,201.49,17.91407341]
[1759043163730,12.2232,201.55,201.49,12.3744]
[1759043165432,12.2232,201.55,201.49,7.91]
[1759043165629,7.76,201.55,201.47,4.4648]
[1759043165935,7.76,201.55,201.46,7.91]
[1759043167533,7.76,201.51,201.46,7.91]
[1759043167730,12.2239,201.52,201.46,7.91]
[1759043181350,12.2239,201.52,201.46,12.375]
[1759043185450,7.76,201.52,201.46,12.375]
[1759043186141,69.4103,201.6,201.44,14.62336923]
[1759043186142,7.72,201.55,201.47,7.42]
[1759043187551,7.72,201.55,201.49,4.4642]
[1759043187747,7.72,201.55,201.49,11.8842]
[1759043189349,12.1833,201.55,201.49,11.8842]
[1759043194056,12.1833,201.55,201.5,7.42]
[1759043194257,4.4633,201.55,201.49,4.4642]
[1759043194753,7.72,201.54,201.49,4.4642]
[1759043194954,4.4633,201.55,201.49,4.4642]
[1759043195256,7.72,201.54,201.49,11.8842]
[1759043195457,4.4633,201.55,201.49,4.4642]
[1759043196256,7.72,201.54,201.49,4.4642]
[1759043196452,12.1833,201.55,201.49,11.8842]
[1759043197353,69.4218,201.57,201.44,22.7289061]
[1759043197653,7.72,201.51,201.44,22.7289061]
[1759043197853,12.1841,201.51,201.44,22.7289061]
[1759043198155,69.4286,201.55,201.44,8.01099948]
[1759043198156,1.73280421,201.5,201.44,8.01099948]
[1759043198452,7.72,201.47,201.41,7.42]
[1759043199150,1.73280421,201.46,201.41,7.42]
[1759043199349,7.72,201.45,201.41,7.42]
[1759043199556,1.73280421,201.46,201.41,7.42]
[1759043200156,7.72,201.45,201.41,7.42]
[1759043200558,6.19810421,201.46,201.41,7.42]
[1759043200752,7.72,201.45,201.38,22.28296086]
[1759043200952,7.72,201.45,201.38,7.42]
[1759043202059,12.1855,201.45,201.38,7.42]
[1759043203753,1.73280421,201.46,201.38,7.42]
[1759043203754,7.72,201.49,201.38,9.15280421]
[1759043203954,1.73280421,201.48,201.38,9.15280421]
[1759043204259,1.73280421,201.48,201.4,1.73280421]
[1759043204456,1.73280421,201.48,201.41,7.42]
[1759043204651,1.73280421,201.48,201.41,11.8862]
[1759043204951,7.72,201.49,201.41,11.8862]
[1759043205157,7.72,201.49,201.42,7.42]
[1759043207159,6.19720421,201.5,201.43,4.4658]
[1759043207358,7.72,201.49,201.44,7.42]
[1759043207554,6.19720421,201.5,201.44,7.42]
[1759043208557,7.72,201.49,201.44,7.42]
[1759043208760,6.19720421,201.5,201.44,7.42]
[1759043210251,7.72,201.49,201.44,7.42]
[1759043210453,6.19720421,201.5,201.44,7.42]
[1759043211062,7.72,201.49,201.44,7.42]
[1759043211362,6.19720421,201.5,201.44,7.42]
[1759043211562,7.72,201.49,201.43,11.8858]
[1759043213560,12.1846,201.49,201.43,7.42]
[1759043215765,7.72,201.49,201.43,7.42]
[1759043218169,12.1846,201.49,201.43,7.42]
[1759043218666,7.72,201.49,201.43,7.42]
[1759043219570,4.4648,201.48,201.43,7.42]
[1759043220167,7.96,201.47,201.43,7.35]
[1759043220571,12.4248,201.48,201.42,9.08280421]
[1759043221673,7.96,201.48,201.42,9.08280421]
[1759043223178,12.4248,201.48,201.42,9.08280421]
[1759043223372,9.69280421,201.48,201.42,7.35]
[1759043223670,7.96,201.47,201.39,7.35]
[1759043224672,12.4255,201.45,201.39,7.35]
[1759043225680,7.96,201.45,201.39,7.35]
[1759043227673,7.96,201.45,201.39,11.8165]
[1759043230381,7.96,201.45,201.39,4.4665]
[1759043231075,12.1452,201.46,201.39,4.4665]
[1759043231278,12.1452,201.46,201.4,7.81]
[1759043231780,7.68,201.49,201.4,9.54280421]
[1759043232381,7.68,201.49,201.43,7.81]
[1759043232576,12.1446,201.49,201.43,12.2758]
[1759043233190,4.4648,201.48,201.43,7.81]
[1759043233381,7.68,201.47,201.43,7.81]
[1759043233882,12.1448,201.48,201.43,7.81]
[1759043234184,12.1448,201.48,201.42,9.54280421]
[1759043234573,12.1448,201.48,201.42,7.81]
[1759043235184,4.465,201.47,201.42,7.81]
[1759043235480,7.68,201.46,201.42,7.81]
[1759043236186,7.68,201.47,201.4,1.73280421]
[1759043236584,1.73280421,201.48,201.4,9.54280421]
[1759043236585,4.4655,201.45,201.4,9.54280421]
[1759043236787,7.68,201.44,201.4,9.54280421]
[1759043236984,4.4655,201.45,201.4,9.54280421]
[1759043237285,7.68,201.44,201.4,9.54280421]
[1759043238487,4.4655,201.45,201.4,9.54280421]
[1759043238682,7.68,201.44,201.4,9.54280421]
[1759043238881,4.4655,201.45,201.4,7.81]
[1759043239589,7.68,201.44,201.4,7.81]
[1759043239985,4.4655,201.45,201.4,7.81]
[1759043240287,7.68,201.44,201.4,7.81]
[1759043240485,4.4655,201.45,201.4,7.81]
[1759043240985,7.68,201.44,201.4,7.81]
[1759043241387,4.4655,201.45,201.4,7.81]
[1759043241591,7.68,201.44,201.4,7.81]
[1759043241786,7.68,201.43,201.4,7.81]
[1759043242590,7.68,201.42,201.4,7.81]
[1759043245692,69.448,201.49,201.35,8.3513101]
[1759043245693,8.11,201.4,201.35,8.3513101]
[1759043245894,9.84280421,201.46,201.39,7.41]
[1759043246084,3.46885795,201.45,201.39,7.41]
[1759043246285,9.84280421,201.46,201.39,7.41]
[1759043246690,4.4655,201.45,201.39,7.41]
[1759043249897,4.4657,201.44,201.39,7.41]
[1759043250098,4.4657,201.44,201.37,4.467]
[1759043250397,4.4657,201.44,201.38,7.41]
[1759043255399,12.576,201.43,201.37,7.41]
[1759043257806,8.11,201.43,201.38,7.41]
[1759043258001,8.11,201.43,201.37,4.467]
[1759043258201,8.11,201.43,201.38,7.41]
[1759043258401,8.11,201.43,201.37,7.41]
[1759043259610,69.4547,201.47,201.35,19.3877739]
[1759043259611,8.11,201.41,201.38,7.41]
[1759043259802,8.11,201.41,201.36,7.41]
[1759043260007,8.11,201.41,201.35,19.3877739]
[1759043260207,8.11,201.41,201.36,7.41]
[1759043260403,8.11,201.41,201.35,19.3877739]
[1759043260611,12.5761,201.42,201.36,7.41]
[1759043261115,12.5761,201.42,201.36,11.8772]
[1759043261609,12.5761,201.42,201.37,7.41]
[1759043261800,4.4661,201.42,201.36,4.4672]
[1759043262005,8.11,201.41,201.37,7.41]
[1759043262505,8.11,201.41,201.36,4.4672]
[1759043263006,8.11,201.41,201.37,7.41]
[1759043263509,8.11,201.41,201.36,4.4672]
[1759043263709,12.5756,201.44,201.36,7.41]
[1759043264708,4.4656,201.44,201.38,4.4667]
[1759043265007,8.11,201.45,201.39,7.41]
[1759043266715,8.11,201.45,201.39,11.8765]
[1759043269007,12.5755,201.45,201.39,7.41]
[1759043271314,4.4657,201.44,201.39,7.41]
[1759043271709,8.11,201.43,201.37,7.41]
[1759043272216,8.11,201.43,201.37,4.467]
[1759043272520,12.5757,201.44,201.38,7.41]
[1759043276014,8.11,201.44,201.38,7.41]
[1759043276220,8.11,201.44,201.39,4.4666]
[1759043276416,8.05,201.45,201.39,12.4066]
[1759043285725,8.05,201.45,201.39,7.94]
[1759043285922,12.5155,201.45,201.39,7.94]
[1759043286924,2.71058778,201.49,201.36,4.4672]
[1759043286925,8.05,201.43,201.37,7.94]
[1759043288621,12.5159,201.43,201.37,7.94]
[1759043289020,8.05,201.43,201.37,7.94]
[1759043289217,8.05,201.4,201.34,7.94]
[1759043290128,12.5166,201.4,201.34,7.94]
[1759043291532,4.4669,201.38,201.34,7.94]
[1759043291737,4.4669,201.38,201.3,15.8013101]
[1759043291927,8.07,201.37,201.3,15.8013101]
[1759043292328,8.07,201.37,201.3,7.45]
[1759043292631,8.07,201.37,201.3,22.01350446]
[1759043294829,8.07,201.37,201.31,7.45]
[1759043297637,12.5375,201.36,201.3,7.45]
[1759043299127,8.07,201.34,201.3,7.45]
[1759043299331,4.4677,201.35,201.3,7.45]
[1759043300140,8.07,201.34,201.3,7.45]
[1759043300435,8.07,201.38,201.3,7.45]
[1759043301437,8.07,201.41,201.3,7.45]
[1759043301739,4.4662,201.42,201.29,7.45]
[1759043301740,3.46334585,201.4,201.29,7.45]
[1759043301937,8.07,201.39,201.29,7.45]
[1759043302133,8.07,201.41,201.3,7.45]
[1759043302634,4.4667,201.39,201.31,4.4683]
[1759043302938,8.07,201.38,201.31,4.4683]
[1759043305142,12.537,201.38,201.32,8.1]
[1759043305743,8.07,201.38,201.32,8.1]
[1759043306044,7.81,201.36,201.32,8.1]
[1759043306239,7.81,201.36,201.3,8.1]
[1759043310149,4.4673,201.37,201.31,8.1]
[1759043310650,12.2773,201.37,201.31,8.1]
[1759043311252,7.81,201.35,201.31,8.1]
[1759043311550,72.18598778,201.41,201.29,120.46]
[1759043311551,7.81,201.39,201.29,120.46]
[1759043311739,69.4813,201.4,201.29,120.46]
[1759043311945,7.81,201.39,201.29,120.46]
[1759043312655,4.4677,201.35,201.29,120.46]
[1759043313046,7.81,201.34,201.29,128.56]
[1759043313243,4.4677,201.35,201.29,128.56]
[1759043313443,4.4679,201.34,201.3,8.1]
[1759043313652,4.4679,201.34,201.29,128.56]
[1759043313952,7.81,201.33,201.29,128.56]
[1759043314153,4.4679,201.34,201.29,128.56]
[1759043314552,7.81,201.33,201.29,128.56]
[1759043314752,4.4679,201.34,201.29,128.56]
[1759043314954,7.81,201.33,201.29,128.56]
[1759043315453,4.4679,201.34,201.29,128.56]
[1759043315754,4.4679,201.34,201.29,8.1]
[1759043316248,7.81,201.33,201.27,8.1]
[1759043319370,7.81,201.33,201.27,12.5692]
[1759043319566,4.4679,201.34,201.27,4.4692]
[1759043319865,12.2779,201.34,201.28,8.1]
[1759043320863,7.81,201.34,201.27,1.7363611]
[1759043321064,4.4674,201.36,201.29,9.8363611]
[1759043322771,4.4674,201.36,201.3,8.1]
[1759043323172,7.81,201.35,201.3,8.1]
[1759043323370,12.2774,201.36,201.3,8.1]
[1759043323873,4.4677,201.35,201.3,8.1]
[1759043324267,7.81,201.35,201.3,8.1]
[1759043324469,7.81,201.35,201.27,8.1]
[1759043324768,1.7363611,201.34,201.27,8.1]
[1759043324969,7.81,201.31,201.27,8.1]
[1759043325176,7.81,201.31,201.25,26.04]
[1759043325374,7.81,201.31,201.23,8.1]
[1759043325575,7.81,201.29,201.23,8.1]
[1759043325772,1.7363611,201.28,201.19,8.1]
[1759043325976,7.81,201.25,201.19,8.1]
[1759043326774,7.81,201.23,201.19,8.1]
[1759043327173,1.7363611,201.24,201.19,8.1]
[1759043327570,6.2065611,201.24,201.19,8.1]
[1759043327766,7.81,201.23,201.19,8.1]
[1759043328174,6.2065611,201.24,201.19,8.1]
[1759043328374,7.81,201.23,201.19,8.1]
[1759043330177,6.2065611,201.24,201.19,8.1]
[1759043330372,7.81,201.23,201.19,8.1]
[1759043330874,6.2065611,201.24,201.19,8.1]
[1759043331076,7.81,201.23,201.19,8.1]
[1759043331675,6.2065611,201.24,201.19,8.1]
[1759043331874,7.81,201.23,201.19,8.1]
[1759043332277,7.81,201.23,201.16,8.1]
[1759043337079,7.81,201.23,201.17,4.4715]
[1759043337282,7.81,201.23,201.18,7.7]
[1759043337482,7.81,201.23,201.17,4.4715]
[1759043338981,7.81,201.23,201.18,7.7]
[1759043339577,13.7665611,201.24,201.18,7.7]
[1759043341185,12.0302,201.24,201.18,7.7]
[1759043343787,12.0302,201.24,201.16,9.4363611]
[1759043344085,13.7665611,201.24,201.16,9.4363611]
[1759043344479,13.7665611,201.24,201.16,7.7]
[1759043344679,7.56,201.22,201.16,9.4363611]
[1759043348285,7.56,201.22,201.16,13.9079611]
[1759043348587,7.56,201.22,201.17,7.7]
[1759043349088,7.56,201.22,201.16,6.2079611]
[1759043349286,7.56,201.27,201.18,9.4363611]
[1759043349485,7.56,201.27,201.21,7.7]
[1759043349685,8.06,201.29,201.23,7.7]
[1759043349885,8.06,201.26,201.23,7.7]
[1759043350190,8.06,201.26,201.23,7.37]
[1759043351280,8.06,201.26,201.16,7.37]
[1759043351483,8.06,201.26,201.22,7.37]
[1759043351787,8.06,201.26,201.21,1.7363611]
[1759043351988,8.06,201.26,201.22,7.37]
[1759043352489,8.06,201.26,201.21,1.7363611]
[1759043352688,8.06,201.26,201.22,7.37]
[1759043352887,8.06,201.26,201.21,1.7363611]
[1759043353089,8.06,201.26,201.22,7.37]
[1759043353390,8.06,201.26,201.21,1.7363611]
[1759043353585,8.06,201.26,201.22,7.37]
[1759043353980,8.06,201.26,201.21,1.7363611]
[1759043354186,8.06,201.26,201.22,7.37]
[1759043354989,8.06,201.26,201.21,1.7363611]
[1759043355390,8.06,201.26,201.22,7.37]
[1759043355688,8.06,201.26,201.22,4.4704]
[1759043355888,8.06,201.26,201.23,7.37]
[1759043356092,8.06,201.26,201.22,4.4704]
[1759043356692,8.06,201.26,201.23,7.37]
[1759043356896,8.06,201.26,201.22,4.4704]
[1759043357096,8.06,201.29,201.23,9.1063611]
[1759043357595,8.06,201.29,201.24,7.37]
[1759043357794,8.06,201.29,201.24,1.7363611]
[1759043357996,8.06,201.29,201.25,7.37]
[1759043358196,8.06,201.29,201.24,1.7363611]
[1759043358691,8.06,201.29,201.24,6.2061611]
[1759043359199,8.06,201.29,201.25,7.37]
[1759043359502,8.06,201.29,201.24,6.2061611]
[1759043359700,8.06,201.29,201.25,7.37]
[1759043359901,8.06,201.29,201.24,6.2061611]
[1759043360094,8.06,201.29,201.25,7.37]
[1759043360399,8.06,201.29,201.24,6.2061611]
[1759043361094,8.06,201.3,201.25,7.37]
[1759043361291,8.06,201.31,201.25,7.37]
[1759043361595,8.06,201.31,201.22,11.8404]
[1759043361802,8.06,201.27,201.22,7.37]
[1759043362003,8.06,201.25,201.18,7.37]
[1759043362196,8.06,201.23,201.15,7.37]
[1759043363603,12.5303,201.23,201.15,7.37]
[1759043368008,12.5303,201.23,201.15,9.1063611]
[1759043371312,12.5303,201.23,201.15,13.5781611]
[1759043372412,12.5303,201.23,201.15,6.2081611]
[1759043372614,12.5303,201.23,201.16,7.59]
[1759043389622,7.5,201.21,201.16,7.59]
[1759043389818,4.4706,201.22,201.15,4.4718]
[1759043390015,7.5,201.21,201.16,7.59]
[1759043390216,7.5,201.21,201.15,4.4718]
[1759043390418,4.4706,201.22,201.15,4.4718]
[1759043390815,7.5,201.21,201.16,7.59]
[1759043391016,4.4706,201.22,201.15,4.4718]
[1759043391518,7.5,201.21,201.15,4.4718]
[1759043391920,4.4706,201.22,201.15,4.4718]
[1759043392220,11.9708,201.21,201.15,4.4718]
[1759043394022,11.9708,201.21,201.14,7.59]
[1759043394323,7.68,201.19,201.14,7.59]
[1759043394522,7.68,201.19,201.14,7.6]
[1759043394916,4.471,201.2,201.13,19.4327411]
[1759043395520,7.68,201.19,201.13,19.4327411]
[1759043395722,4.471,201.2,201.13,19.4327411]
[1759043395923,7.68,201.19,201.14,7.6]
[1759043396122,7.68,201.18,201.14,7.6]
[1759043396721,4.4712,201.19,201.14,7.6]
[1759043397325,7.68,201.18,201.14,7.6]
[1759043397519,4.4712,201.19,201.13,4.4723]
[1759043398126,12.1512,201.19,201.13,4.4723]
[1759043398319,4.4712,201.19,201.13,4.4723]
[1759043398725,12.1512,201.19,201.14,7.6]
[1759043398925,7.68,201.2,201.15,7.6]
[1759043399116,4.4707,201.21,201.1,192.55768911]
[1759043399320,7.68,201.2,201.11,7.6]
[1759043400623,7.68,201.2,201.14,4.4721]
[1759043400830,7.68,201.2,201.15,7.6]
[1759043401124,4.4707,201.21,201.14,4.4721]
[1759043401332,7.68,201.2,201.15,7.6]
[1759043401625,7.68,201.21,201.15,4.4718]
[1759043401933,7.68,201.22,201.16,7.6]
[1759043403731,12.1505,201.22,201.16,7.6]
[1759043404428,4.4708,201.21,201.15,4.4718]
[1759043404628,12.1508,201.21,201.16,7.6]
[1759043404826,4.4708,201.21,201.15,4.4718]
[1759043405531,7.68,201.2,201.15,12.0718]
[1759043405732,7.68,201.19,201.13,12.0723]
[1759043407529,4.4715,201.18,201.13,7.6]
[1759043407724,7.68,201.2,201.13,7.6]
[1759043407930,3.47899193,201.19,201.13,7.6]
[1759043408132,7.68,201.17,201.13,7.6]
[1759043408427,7.68,201.2,201.13,7.6]
[1759043408734,7.68,201.16,201.13,7.6]
[1759043408937,7.68,201.16,201.12,7.6]
[1759043409135,12.1517,201.17,201.11,12.0728]
[1759043411736,12.1517,201.17,201.11,4.4728]
[1759043411938,7.68,201.17,201.11,4.4728]
[1759043412128,7.68,201.17,201.1,134.87380228]
[1759043412129,7.66,201.21,201.1,207.17229139]
[1759043412334,7.66,201.21,201.12,7.58]
[1759043413632,7.66,201.21,201.15,4.4719]
[1759043413840,7.66,201.21,201.15,12.0519]
[1759043414735,12.1308,201.21,201.15,12.0519]
[1759043429842,12.1308,201.21,201.1,215.52360149]
[1759043429843,7.66,201.21,201.12,69.5753]
[1759043430051,7.92,201.26,201.14,7.82]
[1759043430347,2.71638911,201.27,201.14,7.82]
[1759043430348,7.92,201.24,201.14,7.82]
[1759043430547,4.72044673,201.23,201.14,7.82]
[1759043430845,3.47839736,201.22,201.14,7.82]
[1759043431042,12.3901,201.24,201.14,7.82]
[1759043431248,4.72045519,201.23,201.14,7.82]